{"text_format":"2","workbook":"xlsx","n_sheets":4,"sheets":["PL","BS","EQ","CF"],"not_rendered":{"charts":0,"images":1,"macros":0,"external_links":0,"defined_names":3810,"comments":0,"pivot_tables":0},"unopened":[],"bounds":{"document_bytes":16777216,"sheet_cells":100000,"run_cost":"one","rows_first":2000,"rows_last":500,"rows_between":2000,"halvings":0,"cell_chars":16384,"cell_head_chars":4096},"cells_cut":0,"cells_raw":0,"read":"whole","date_system":"1900"}

{"sheet":"PL","index":0,"n_rows":46,"n_cols":7,"rows_kept":46,"cut":false,"hidden":false,"merged":[]}
[]
[]
[null,null,"Konzernabschluss zum 30. September 2021."]
[]
[null,null,"Konsolidierte Gesamtergebnisrechnung."]
[]
[null,null,"in TEUR",null,"H1 2020/21",null,"H1 2021/22"]
[null,null,"Umsatzerlöse",null,257486.75975856598,null,255168.82422246001]
[null,null,"Sonstige betriebliche Erträge",null,2084.51003924508,null,10883.055247326502]
[null,null,"Veränderung des Bestandes an Fertigerzeugnissen, unfertigen Erzeugnissen \nsowie an noch nicht abrechenbaren Leistungen",null,519.78821210573801,null,-1064.4648824727701]
[null,null,"Aufwendungen für Material und sonstige bezogene Herstellungsleistungen",null,-116363.57015847499,null,-90096.850136320805]
[null,null,"Personalaufwand",null,-125507.06782926799,null,-114989.01115688901]
[null,null,"Sonstige betriebliche Aufwendungen",null,-36577.540477798,null,-37173.316852368305]
[null,null,"Anteiliges Ergebnis aus assoziierten Unternehmen und Gemeinschaftsunternehmen",null,-1939.4524299999998,null,-1333.22758619366]
[null,null,"Ergebnis aus betrieblicher Tätigkeit vor Abschreibungen und Wertminderungen (EBITDA)",null,-20296.572885624188,null,21395.00885554199]
[null,null,"Aufwand für planmäßige Abschreibungen",null,-12747.455650108004,null,-10854.68002701803]
[null,null,"Wertminderungen",null,-24791.488000000001,null,106.82937914243199]
[null,null,"Ergebnis aus betrieblicher Tätigkeit (EBIT)",null,-57835.516535731796,null,10647.1582076668]
[null,null,"Finanzerträge",null,778.47777866976696,null,2790.9450200431102]
[null,null,"Finanzaufwendungen",null,-8587.1511582593903,null,-5600.2037828992507]
[null,null,"Finanzergebnis",null,-7808.6733795896198,null,-2809.2587628561396]
[null,null,"Anteiliges Ergebnis aus assoziierten Unternehmen und Gemeinschaftsunternehmen \nals Finanzinvestitionen",null,-506.87973999999997,null,-167.01942000000003]
[null,null,"Ergebnis vor Steuern",null,-66151.069655321102,null,7670.8800248105999]
[null,null,"Ertragsteuern",null,10597.184300303699,null,-2292.78203835877]
[null,null,"Periodenergebnis",null,-55553.885355017599,null,5378.0979864517894]
[null,null,"davon den Anteilseignern der Gesellschaft zurechenbar",null,-53958.820868460294,null,2991.4485903750101]
[null,null,"davon nicht beherrschende Anteile",null,-1595.0644865572899,null,2386.6493960765001]
[]
[null,null,"Periodenergebnis je Aktie, den Anteilseignern der Gesellschaft zurechenbar 1)",null,-4.1506785283430672,null,0.23011143002884693]
[]
[null,null,"Sonstiges Ergebnis"]
[null,null,"Währungsumrechnungsdifferenzen ",null,5895.9936481784198,null,-3737.68147173224]
[null,null,"Währungsumrechnungsdifferenzen aus Nettoinvestitionen in einen \nausländischen Geschäftsbetrieb",null,-3206.36535,null,610.12686999999994]
[null,null,"Steuern betreffend Posten, die in das Periodenergebnis umgegliedert werden",null,801.59100000000001,null,-152.53172000000001]
[null,null,"Posten, die anschließend in das Periodenergebnis umgegliedert werden",null,3491.2192981784201,null,-3280.0863217322399]
[null,null,"Umbewertungen von Verpflichtungen aus Leistungen an Arbeitnehmer nach Beendigung \ndes Dienstverhältnisses",null,0,null,0]
[null,null,"Steuern betreffend Posten, die nicht in das Periodenergebnis umgegliedert werden",null,0,null,0]
[null,null,"Posten, die anschließend nicht in das Periodenergebnis umgegliedert werden",null,0,null,0]
[null,null,"Sonstiges Ergebnis der Periode nach Steuern",null,3491.2192981784201,null,-3280.0863217322399]
[null,null,"Gesamtergebnis der Periode",null,-52062.666056839196,null,2098.0116647195]
[null,null,"davon den Anteilseignern der Gesellschaft zurechenbar",null,-51377.355792799899,null,1524.3694616468699]
[null,null,"davon nicht beherrschende Anteile ",null,-685.31026403926194,null,573.64220307263497]
[]
[]
[]
[null,"1)","Ergebnis je Aktie verwässert = unverwässert und bezogen auf 13,0 Mio. Aktien."]

{"sheet":"BS","index":1,"n_rows":57,"n_cols":7,"rows_kept":57,"cut":false,"hidden":false,"merged":[[61,2,61,6]]}
[]
[]
[null,null,"Konsolidierte Bilanz."]
[]
[null,null,"in TEUR",null,"31. März 2021",null,"30. Sept. 2021"]
[null,null,"AKTIVA"]
[null,null,"Sachanlagen",null,55171.218748326195,null,52933.115547012996]
[null,null,"Immaterielle Vermögenswerte",null,36228.9604041559,null,37156.370896765598]
[null,null,"Anteile an assoziierten Unternehmen und Gemeinschaftsunternehmen",null,29750.8799313655,null,28235.5207227094]
[null,null,"Sonstige langfristige finanzielle Vermögenswerte und Beteiligungen",null,12280.781417578099,null,13594.958216675701]
[null,null,"Langfristige Vertragsvermögenswerte aus Kundenverträgen",null,5188.1549999999997,null,5940.9170000000004]
[null,null,"Langfristige Leasingforderungen",null,846.54779694224806,null,729.82686124459201]
[null,null,"Sonstige langfristige Vermögenswerte und Forderungen",null,3592.3722484637719,null,3595.8244726209077]
[null,null,"Latente Steueransprüche",null,42888.235369572001,null,44603.102194137296]
[null,null,"Langfristige Vermögenswerte",null,185947.15187322398,null,186789.636867986]
[{"$nulls":4},"",null,""]
[null,null,"Vorräte",null,41733.178195804605,null,38201.882974178203]
[null,null,"Forderungen aus Lieferungen und Leistungen und sonstige kurzfristige Vermögenswerte",null,130041.57543553259,null,139501.24739458022]
[null,null,"Kurzfristige Vertragsvermögenswerte aus Kundenverträgen",null,105971.626996666,null,100869.79825158999]
[null,null,"Kurzfristige Leasingforderungen",null,594.82442551918393,null,424.10665155925801]
[null,null,"Kurzfristige Steuerforderungen",null,25933.536455413225,null,24662.394404202551]
[null,null,"Sonstige kurzfristige finanzielle Vermögenswerte",null,923.52567876421097,null,1137.8832462008299]
[null,null,"Liquide Mittel",null,102010.35617198799,null,61096.376624319397]
[null,null,"Kurzfristige Vermögenswerte",null,407208.62335968798,null,365893.68954663095]
[{"$nulls":4},"",null,""]
[null,null,"SUMME AKTIVA",null,593155.77522291103,null,552683.326404616]
[{"$nulls":4},"",null,""]
[null,null,"EIGENKAPITAL",null,"",null,""]
[null,null,"Grundkapital",null,13000.0000000001,null,13000]
[null,null,"Kapitalrücklage",null,117508.771260001,null,117508.771259999]
[null,null,"Konzernbilanzgewinn/-verlust und andere Rücklagen",null,-39267.924324493804,null,-37743.554920142196]
[null,null,"Kapital und Rücklagen, die den Anteilseignern der Gesellschaft zurechenbar sind",null,91240.846935507099,null,92765.216339856706]
[null,null,"Nicht beherrschende Anteile ",null,-6479.9186600349703,null,-5973.4753864436198]
[null,null,"SUMME EIGENKAPITAL ",null,84760.928275472106,null,86791.7409534131]
[]
[null,null,"VERBINDLICHKEITEN"]
[null,null,"Langfristige Finanzverbindlichkeiten",null,120894.96660266399,null,146846.19665913601]
[null,null,"Langfristige Leasingverbindlichkeiten",null,35692.506396812605,null,31530.690095973601]
[null,null,"Verpflichtungen aus Leistungen an Arbeitnehmer nach Beendigung des Dienstverhältnisses",null,25425.103400540098,null,24230.894069570499]
[null,null,"Langfristige Rückstellungen",null,5264.93371888405,null,4486.4865093520702]
[null,null,"Langfristige Vertragsverbindlichkeiten aus Kundenverträgen",null,9413.3739999999998,null,826.72500000000002]
[null,null,"Sonstige langfristige Verbindlichkeiten",null,611.76115546000074,null,508.90752088092984]
[null,null,"Latente Steuerschulden",null,1015.78395805942,null,1052.6840329914601]
[null,null,"Langfristige Verbindlichkeiten",null,198318.42923241999,null,209482.583887905]
[]
[null,null,"Kurzfristige Finanzverbindlichkeiten",null,102362.40564709701,null,45648.540333342404]
[null,null,"Kurzfristige Leasingverbindlichkeiten",null,13584.9926880689,null,12059.330205716002]
[null,null,"Verbindlichkeiten aus Lieferungen und Leistungen",null,59403.811326916999,null,57907.972137983503]
[null,null,"Kurzfristige Vertragsverbindlichkeiten aus Kundenverträgen",null,39144.575103083,null,50148.130595885203]
[null,null,"Kurzfristige Rückstellungen",null,42471.695162826705,null,29705.215158103001]
[null,null,"Kurzfristige Steuerverbindlichkeiten",null,1747.7024201870499,null,2655.0227773276201]
[null,null,"Sonstige Verbindlichkeiten und Abgrenzungen",null,51361.230161443302,null,58284.782710455096]
[null,null,"Kurzfristige Verbindlichkeiten",null,310076.41250484699,null,256408.992597567]
[]
[null,null,"SUMME VERBINDLICHKEITEN",null,508394.84173726797,null,465891.57648547099]
[]
[null,null,"SUMME PASSIVA",null,593155.77522291197,null,552683.32640461694]

{"sheet":"EQ","index":2,"n_rows":26,"n_cols":17,"rows_kept":26,"cut":false,"hidden":false,"merged":[[29,2,29,14]]}
[]
[]
[]
[null,null,"Konsolidierte Eigenkapitalveränderungsrechnung."]
[]
[]
[null,null,"in TEUR",null,"Grund-\nkapital",null,"Kapital-\nrücklage",null,"Sonstige Rücklagen",null,"Konzern-\nbilanzgewinn/-verlust",null,"Den Anteilseignern der Gesellschaft zurechenbar",null,"Nicht beherrschende Anteile ",null,"Summe\nEigen-\nkapital"]
[null,null,"Stand 31. März 2021",null,13000,null,117508.771259999,null,-44171.003794494536,null,4903.0794745132407,null,{"$f":"SUM(E8:K8)","v":91240.846940017713},null,-6479.9186600349703,null,84760.928279982603]
[null,null,"Effekte aus dem Erwerb von Anteilen an Tochterunternehmen",{"$nulls":9},{"$f":"SUM(E9:K9)","v":0},null,null,null,{"$f":"+M9+O9","v":0}]
[null,null,"Effekte aus dem Verkauf von Anteilen an \nTochterunternehmen",{"$nulls":9},0,null,null,null,{"$f":"+M10+O10","v":0}]
[null,null,"Dividende",{"$nulls":7},0,null,0,null,-67.198991289071998,null,-67.198991289071998]
[null,null,"Periodenergebnis",{"$nulls":7},2991.4485903750101,null,2991.4485903750101,null,2386.6493960765001,null,5378.0979864515102]
[null,null,"Sonstiges Ergebnis der Periode:"]
[null,null,"   Währungsumrechnungsdifferenzen",{"$nulls":5},-1467.0791287283746,null,null,null,-1467.0791287283746,null,-1813.0071930038653,null,-3280.0863217322399]
[null,null,"   Umbewertungen von Verpflichtungen aus \n   Leistungen an Arbeitnehmer nach Beendigung \n   des Dienstverhältnisses",{"$nulls":5},-89.577809999999999,null,{"$f":"-I15","v":89.577809999999999},null,0,null,0,null,0]
[null,null,"Stand 30. September 2021",null,{"$f":"SUM(E8:E15)","v":13000},null,{"$f":"SUM(G8:G15)","v":117508.771259999},null,{"$f":"SUM(I8:I15)","v":-45727.66073322291},null,{"$f":"SUM(K8:K15)","v":7984.1058748882506},null,{"$f":"SUM(M8:M15)","v":92765.216401664351},null,{"$f":"SUM(O8:O15)","v":-5973.4754482514072},null,{"$f":"SUM(Q8:Q15)+0.5","v":86792.240953412809}]
[]
[]
[null,null,"Stand 31. März 2020",null,13000,null,117508.771260001,null,-50128.608456053196,null,107781.58495264899,null,{"$f":"SUM(E19:K19)","v":188161.7477565968},null,-5680.0959900497701,null,{"$f":"+M19+O19","v":182481.65176654703}]
[null,null,"Kapital- und Anteilsveränderungen bei einem Tochterunternehmen",{"$nulls":9},0,null,null,null,{"$f":"+M20+O20","v":0}]
[null,null,"Dividende",{"$nulls":9},0,null,0,null,0]
[null,null,"Periodenergebnis ",{"$nulls":7},-53958.820868460309,null,-53958.820868460309,null,-1595.0644865572899,null,-55553.885355017599]
[null,null,"Sonstiges Ergebnis der Periode:"]
[null,null,"   Währungsumrechnungsdifferenzen ",{"$nulls":5},2581.465413160392,null,null,null,2581.465413160392,null,909.75422251802797,null,3491.2196356784198]
[null,null,"   Umbewertungen von Verpflichtungen aus \n   Leistungen an Arbeitnehmer nach Beendigung \n   des Dienstverhältnisses",{"$nulls":9},0,null,0,null,0]
[null,null,"Stand 30. September 2020",null,{"$f":"SUM(E19:E25)","v":13000},null,{"$f":"SUM(G19:G25)","v":117508.771260001},null,{"$f":"SUM(I19:I25)","v":-47547.143042892807},null,{"$f":"SUM(K19:K25)","v":53822.764084188682},null,{"$f":"SUM(M19:M25)","v":136784.39230129687},null,{"$f":"SUM(O19:O25)","v":-6365.4062540890318},null,{"$f":"SUM(Q19:Q25)","v":130418.98604720786}]

{"sheet":"CF","index":3,"n_rows":56,"n_cols":7,"rows_kept":56,"cut":false,"hidden":false,"merged":[[56,2,56,6]]}
[]
[]
[null,null,"Konsolidierte Kapitalflussrechnung."]
[]
[null,null,"in TEUR",null,"H1 2020/21",null,"H1 2021/22"]
[null,null,"Ergebnis aus betrieblicher Tätigkeit",null,-57835.516535731796,null,10647.1582076668]
[null,null,"Planmäßige Abschreibungen",null,12747.455650108001,null,10854.6800278756]
[null,null,"Wertminderungen",null,24791.488000000001,null,-106.82938]
[null,null,"Veränderung Verpflichtungen aus Leistungen an Arbeitnehmer nach Beendigung des Dienstverhältnisses",null,-363.81748179597798,null,-872.11433096960002]
[null,null,"Veränderung langfristiger Forderungen aus Lieferungen und Leistungen, langfristiger Vertragsvermögenswerte aus Kundenverträgen und sonstiger langfristiger Vermögenswerte",null,8176.0244453376599,null,-712.38728845943297]
[null,null,"Veränderung langfristiger Verbindlichkeiten aus Lieferungen und Leistungen, langfristiger Vertragsverbindlichkeiten aus Kundenverträgen und sonstiger langfristiger Verbindlichkeiten und Rückstellungen ",null,1175.14675962314,null,-9648.6668441110996]
[null,null,"Nettozahlungen von Ertragsteuern",null,-10540.277720699602,null,-1792.28643085147]
[null,null,"Zinseinzahlungen",null,187.299015224589,null,199.319938246112]
[null,null,"Zinsauszahlungen",null,-2838.0403066531499,null,-2145.48354339855]
[null,null,"Sonstige (netto)",null,-711.56741473107991,null,-3438.8009140600197]
[null,null,"Cashflow aus dem Ergebnis",null,-25211.805589318214,null,2984.5894419383385]
[{"$nulls":4},"",null,""]
[null,null,"Veränderung des Nettoumlaufvermögens:",null,"",null,""]
[null,null,"Veränderung Forderungen aus Lieferungen und Leistungen, kurzfristiger Vertragsvermögenswerte aus Kundenverträgen und sonstiger kurzfristiger Vermögenswerte",null,45162.472042757901,null,-5031.5273888010997]
[null,null,"Veränderung Vorräte",null,1571.9409997003199,null,3481.0132216264401]
[null,null,"Veränderung Verbindlichkeiten aus Lieferungen und Leistungen, kurzfristiger Vertragsverbindlichkeiten aus Kundenverträgen und sonstiger kurzfristiger Verbindlichkeiten ",null,-43610.041101215698,null,11081.6748528807]
[null,null,"Veränderung kurzfristige Rückstellungen",null,-1096.6034223366401,null,-12766.4800047237]
[null,null,"Veränderung des Nettoumlaufvermögens",null,2027.76851890588,null,-3235.3193190176598]
[{"$nulls":4},"",null,""]
[null,null,"Cashflow aus betrieblicher Tätigkeit",null,-23184.037070412302,null,-250.72987707932299]
[{"$nulls":4},"",null,""]
[null,null,"Ankauf von Sachanlagen",null,-1069.13332612305,null,-809.67098672486702]
[null,null,"Ankauf von immateriellen Vermögenswerten",null,-532.860019558516,null,-41.760869260359996]
[null,null,"Ankauf von Wertpapieren, Beteiligungen und sonstigen finanziellen Vermögenswerten",null,-6057.3656600000004,null,-1878.37796099088]
[null,null,"Zahlungen für den Erwerb von Gesellschaften (abzüglich der liquiden Mittel dieser Gesellschaften)",null,-2.3815328670025298E-4,null,0]
[null,null,"Zahlungen für den Erwerb von Anteilen an at-equity-konsolidierten Gesellschaften"]
[null,null,"Einzahlungen aus dem Verkauf von Anteilen an Tochterunternehmen",null,4.4617258012294805E-4,null,842.8]
[null,null,"Einzahlungen aus dem Verkauf von Sachanlagen und immateriellen Vermögenswerten",null,229.64447190157901,null,694.33872065561502]
[null,null,"Einzahlungen aus dem Verkauf von Wertpapieren und sonstigen finanziellen Vermögenswerten",null,610.25699999999995,null,281.49099999999999]
[null,null,"Cashflow aus Investitionstätigkeit",null,-6819.4573257606899,null,-911.18061363125798]
[{"$nulls":4},"",null,""]
[null,null,"Free Cashflow 1)",null,-30003.494396172991,null,-1161.9104907105809]
[{"$nulls":4},"",null,""]
[null,null,"An die Aktionäre der Gesellschaft gezahlte Dividende",null,5.3953386377543202E-6,null,-6.1807783582480599E-5]
[null,null,"An nicht beherrschende Anteile von Konzerngesellschaften gezahlte Dividende",null,0,null,-67.198929481288403]
[null,null,"Zahlungen für den Erwerb von nicht beherrschenden Anteilen",null,0,null,0]
[null,null,"Zunahme langfristiger Finanzverbindlichkeiten",null,0,null,18537.11]
[null,null,"Zunahme kurzfristiger Finanzverbindlichkeiten",null,15872.174000000001,null,8937.3040000000001]
[null,null,"Abnahme kurzfristiger Finanzverbindlichkeiten",null,-17232.868999999999,null,-58072.909]
[null,null,"Auszahlungen betreffend Leasing",null,-7159.7725389127099,null,-8770.4687831919309]
[null,null,"Cashflow aus Finanzierungstätigkeit",null,-8520.4673931254711,null,-39436.163031764001]
[]
[null,null,"Anfangsbestand Finanzmittel",null,122631.806781394,null,102010.35617198799]
[null,null,"Veränderung des Finanzmittelbestands 2)",null,-38523.961789298497,null,-40598.073522474602]
[null,null,"Auswirkungen von Wechselkursänderungen",null,-634.6503348500429,null,-315.90731234942501]
[null,null,"Endbestand Finanzmittel",null,83473.195549283992,null,61096.376624319397]
[]
[]
[]
[null,"1)","Cashflow aus betrieblicher Tätigkeit + Cashflow aus Investitionstätigkeit"]
[null,"2)","Free Cashflow + Cashflow aus Finanzierungstätigkeit"]